bitfinex/quotes_BTCUSD_20250223
["timestamp","ask_amount","ask_price","bid_price","bid_amount"]
[1740280948387,0.00093515,96653.0,96652.0,0.18745548]
[1740280949035,0.00093515,96653.0,96652.0,0.19763428]
[1740280949236,0.00093515,96653.0,96652.0,0.19963428]
[1740280949654,0.00093515,96653.0,96652.0,0.20263428]
[1740280950009,0.00093515,96653.0,96652.0,0.20063428]
[1740280950228,0.00093515,96653.0,96652.0,0.19763428]
[1740280950485,0.00093515,96653.0,96652.0,0.20063428]
[1740280950679,0.00093515,96653.0,96652.0,0.20463428]
[1740280953218,0.00093515,96653.0,96652.0,0.20463428]
[1740280953753,0.00093515,96653.0,96652.0,0.30727997]
[1740280954091,0.00093515,96653.0,96652.0,0.32752453]
[1740280954471,0.00093515,96653.0,96652.0,0.47752453]
[1740280958398,0.0776,96671.0,96670.0,0.155167]
[1740280958605,0.0776,96671.0,96670.0,0.16306163]
[1740280959193,0.0017008,96673.0,96670.0,0.16306163]
[1740280959539,0.0017008,96673.0,96672.0,0.155163]
[1740280962015,0.0017008,96673.0,96672.0,0.164163]
[1740280966711,0.00135815,96673.0,96672.0,0.164163]
[1740280967038,0.00135815,96673.0,96672.0,0.18472839]
[1740280970437,0.00135815,96673.0,96672.0,0.164163]
[1740280976414,0.00135815,96673.0,96672.0,0.165863]
[1740280992748,0.00135815,96673.0,96672.0,0.19811552]
[1740280999771,0.00135815,96673.0,96672.0,0.19311552]
[1740281000183,0.00135815,96673.0,96672.0,0.19911552]
[1740281000499,0.00135815,96673.0,96672.0,0.19511552]
[1740281000794,0.00135815,96673.0,96672.0,0.20111552]
[1740281007248,0.00135815,96673.0,96672.0,0.19511552]
[1740281007801,0.00135815,96673.0,96672.0,0.20211552]
[1740281007957,0.00135815,96673.0,96672.0,0.19611552]
[1740281008391,0.00135815,96673.0,96672.0,0.20311552]
[1740281009820,0.00135815,96673.0,96672.0,0.35311552]
[1740281013300,0.00135815,96673.0,96672.0,0.34611552]
[1740281013994,0.00135815,96673.0,96672.0,0.35311552]
[1740281014222,0.00135815,96673.0,96672.0,0.34611552]
[1740281014422,0.00135815,96673.0,96672.0,0.35311552]
[1740281016710,0.00135815,96673.0,96672.0,0.33911552]
[1740281016860,0.00135815,96673.0,96672.0,0.34611552]
[1740281017071,0.00135815,96673.0,96672.0,0.35311552]
[1740281017313,0.00135815,96673.0,96672.0,0.34611552]
[1740281017640,0.00135815,96673.0,96672.0,0.35311552]
[1740281019660,0.00135815,96673.0,96672.0,0.45576121]
[1740281022451,0.076,96696.0,96687.0,0.155139]
[1740281023515,0.076,96696.0,96687.0,0.158139]
[1740281023725,0.076,96696.0,96687.0,0.162139]
[1740281030138,0.076,96696.0,96687.0,0.18268906]
[1740281040601,0.076,96696.0,96687.0,0.21491886]
[1740281044179,0.00155129,96695.0,96687.0,0.0392298]
[1740281044437,0.0781504,96688.0,96687.0,0.007]
[1740281044904,0.0957765,96688.0,96687.0,0.007]
[1740281045361,0.09732792,96688.0,96687.0,0.007]
[1740281047177,0.36965246,96688.0,96687.0,0.007]
[1740281047378,0.41450104,96688.0,96687.0,0.007]
[1740281048172,0.25936304,96688.0,96687.0,0.007]
[1740281050478,0.41450104,96688.0,96687.0,0.004]
[1740281050652,0.41450104,96688.0,96673.0,0.0017]
[1740281050653,0.01454085,96687.0,96673.0,0.0017]
[1740281050982,0.01454085,96677.0,96673.0,0.0017]
[1740281051158,0.10419744,96676.0,96673.0,0.0017]
[1740281051400,0.12180695,96676.0,96673.0,0.0017]
[1740281052821,0.12180695,96676.0,96673.0,0.0037]
[1740281053383,0.12180695,96676.0,96673.0,0.0047]
[1740281054150,0.12180695,96676.0,96673.0,0.0027]
[1740281054354,0.12180695,96676.0,96673.0,0.0047]
[1740281055133,0.12180695,96676.0,96673.0,0.0027]
[1740281055332,0.12180695,96676.0,96673.0,0.0017]
[1740281055542,0.12180695,96676.0,96673.0,0.0027]
[1740281058640,0.1202552,96676.0,96673.0,0.0027]
[1740281059807,0.01760951,96676.0,96673.0,0.0027]
[1740281059984,0.01760951,96676.0,96675.0,0.155159]
[1740281060189,0.0773,96678.0,96675.0,0.155159]
[1740281060387,0.01760673,96676.0,96673.0,0.209581]
[1740281060590,0.10264569,96677.0,96674.0,0.15516]
[1740281060754,0.3297,96681.0,96673.0,0.0017]
[1740281060956,0.3297,96681.0,96680.0,0.155151]
[1740281062408,0.3297,96681.0,96680.0,0.157151]
[1740281063523,0.0767,96685.0,96680.0,0.157151]
[1740281064393,0.0767,96685.0,96681.0,0.155149]
[1740281064698,0.0767,96685.0,96680.0,0.002]
[1740281064699,0.0767,96685.0,96678.0,0.20687]
[1740281064859,0.0767,96685.0,96680.0,0.15515]
[1740281066115,0.0767,96685.0,96681.0,0.155148]
[1740281067113,0.0008504,96688.0,96673.0,0.0017]
[1740281067458,0.00085,96685.0,96684.0,0.155144]
[1740281068029,0.00085,96685.0,96682.0,0.206862]
[1740281068393,0.00085,96685.0,96683.0,0.155146]
[1740281068816,0.00085,96685.0,96684.0,0.003]
[1740281069200,0.00085,96685.0,96683.0,0.155146]
[1740281070044,0.00085,96685.0,96684.0,0.002]
[1740281070632,0.01846782,96685.0,96684.0,0.002]
[1740281070835,0.00085,96685.0,96684.0,0.157144]
[1740281071035,0.00085,96685.0,96684.0,0.160144]
[1740281071236,0.00085,96685.0,96684.0,0.158144]
[1740281071431,0.00085,96685.0,96684.0,0.003]
[1740281071931,0.00085,96685.0,96684.0,0.158144]
[1740281072544,0.00085,96685.0,96684.0,0.160144]
[1740281074108,0.00085,96685.0,96684.0,0.005]
[1740281074794,0.00085,96685.0,96684.0,0.003]
[1740281074968,0.00085,96685.0,96683.0,0.155145]
[1740281075173,0.00085,96685.0,96684.0,0.003]
[1740281075578,0.00085,96685.0,96684.0,0.002]
[1740281075773,0.00085,96685.0,96684.0,0.004]
[1740281075975,0.00085,96685.0,96684.0,0.005]
[1740281078852,0.00085,96685.0,96684.0,0.160144]
[1740281079078,0.01847239,96685.0,96684.0,0.160144]
[1740281079281,0.00085,96685.0,96684.0,0.160144]
[1740281080686,0.00085,96685.0,96684.0,0.005]
[1740281081271,0.00085,96685.0,96684.0,0.160144]
[1740281082970,0.00085,96685.0,96684.0,0.005]
[1740281083487,0.00085,96685.0,96684.0,0.02584438]
[1740281084974,0.00085,96685.0,96684.0,0.18098838]
[1740281089039,0.00085,96685.0,96684.0,0.02584438]
[1740281089249,0.00085,96685.0,96684.0,0.18098838]
[1740281090490,0.00085,96685.0,96684.0,0.02584438]
[1740281091333,0.00085,96685.0,96684.0,0.18098838]
[1740281092531,0.00085,96685.0,96684.0,0.02584438]
[1740281101054,0.00085,96685.0,96684.0,0.18098838]
[1740281101257,0.00085,96685.0,96684.0,0.02584438]
[1740281106465,0.00085,96685.0,96684.0,0.02484438]
[1740281106905,0.00085,96685.0,96684.0,0.02584438]
[1740281107332,0.00085,96685.0,96684.0,0.02484438]
[1740281107572,0.00085,96685.0,96684.0,0.02584438]
[1740281107799,0.00085,96685.0,96684.0,0.02184438]
[1740281108375,0.00085,96685.0,96684.0,0.02384438]
[1740281111795,0.00085,96685.0,96684.0,0.17898838]
[1740281112001,0.00085,96685.0,96684.0,0.02384438]
[1740281113854,0.00085,96685.0,96684.0,0.17898838]
[1740281114983,0.00085,96685.0,96684.0,0.17698838]
[1740281115304,0.00085,96685.0,96684.0,0.17798838]
[1740281115792,0.00085,96685.0,96684.0,0.17998838]
[1740281116879,0.00085,96685.0,96684.0,0.17798838]
[1740281117588,0.00085,96685.0,96684.0,0.17598838]
[1740281118031,0.00085,96685.0,96684.0,0.18198838]
[1740281118665,0.00085,96685.0,96684.0,0.17998838]
[1740281118864,0.00085,96685.0,96684.0,0.18298838]
[1740281121332,0.00085,96685.0,96684.0,0.2152312]
[1740281121697,0.00085,96685.0,96684.0,0.18298838]
[1740281122316,0.00085,96685.0,96684.0,0.17898838]
[1740281122545,0.00085,96685.0,96684.0,0.18098838]
[1740281122751,0.00085,96685.0,96684.0,0.18398838]
[1740281124074,0.00085,96685.0,96684.0,0.18098838]
[1740281124231,0.00085,96685.0,96684.0,0.18498838]
[1740281133706,0.00085,96685.0,96684.0,0.17998838]
[1740281133898,0.00085,96685.0,96684.0,0.17598838]
[1740281134071,0.00085,96685.0,96684.0,0.18198838]
[1740281134285,0.00085,96685.0,96684.0,0.17898838]
[1740281134864,0.00085,96685.0,96684.0,0.18198838]
[1740281139364,0.00085,96685.0,96684.0,0.21422534]
[1740281140218,0.00085,96685.0,96684.0,0.21122534]
[1740281141259,0.00085,96685.0,96684.0,0.21422534]
[1740281141462,0.00085,96685.0,96684.0,0.21122534]
[1740281141674,0.00085,96685.0,96684.0,0.21522534]
[1740281142993,0.00085,96685.0,96684.0,0.18298838]
[1740281143965,0.00085,96685.0,96684.0,0.17898838]
[1740281144163,0.00085,96685.0,96684.0,0.211216]
[1740281144401,0.00085,96685.0,96684.0,0.215216]
[1740281144819,0.00085,96685.0,96684.0,0.17898838]
[1740281144957,0.00085,96685.0,96684.0,0.21121583]
[1740281145163,0.00085,96685.0,96684.0,0.20821583]
[1740281145480,0.00085,96685.0,96684.0,0.21121583]
[1740281146298,0.00085,96685.0,96684.0,0.21521583]
[1740281146904,0.00085,96685.0,96684.0,0.21121583]
[1740281147105,0.00085,96685.0,96684.0,0.21521583]
[1740281147309,0.00085,96685.0,96684.0,0.21221583]
[1740281147506,0.00085,96685.0,96684.0,0.21521583]
[1740281184926,0.00028493,96688.0,96687.0,0.155139]
[1740281185074,0.00028493,96688.0,96687.0,0.18736645]
[1740281186506,0.00028493,96688.0,96687.0,0.19036645]
[1740281187334,0.00028493,96688.0,96687.0,0.19236645]
[1740281191525,0.00028493,96688.0,96687.0,0.21286656]
[1740281193689,0.00028493,96688.0,96687.0,0.05772756]
[1740281193893,0.00028493,96688.0,96687.0,0.21286656]
[1740281193894,0.02719584,96688.0,96687.0,0.21286656]
[1740281194099,0.00028493,96688.0,96687.0,0.21286656]
[1740281195640,0.00028493,96688.0,96687.0,0.21456736]
[1740281199106,0.00028493,96688.0,96687.0,0.05942836]
[1740281199348,0.02719584,96688.0,96687.0,0.21456736]
[1740281199703,0.00028493,96688.0,96687.0,0.21456736]
[1740281289658,0.00028493,96688.0,96687.0,0.18233991]
[1740281289835,0.00028493,96688.0,96687.0,0.21460132]
[1740281290344,0.00028493,96688.0,96687.0,0.18233991]
[1740281316247,0.00028493,96688.0,96687.0,0.21459568]
[1740281322144,0.00028493,96688.0,96687.0,0.18233991]
[1740281323962,0.00028493,96688.0,96687.0,0.02720091]
[1740281324356,0.02797334,96688.0,96687.0,0.02720091]
[1740281325346,0.00028493,96688.0,96687.0,0.02720091]
[1740281325559,0.02797334,96688.0,96687.0,0.02520091]
[1740281325759,0.02797334,96688.0,96687.0,0.02220091]
[1740281326003,0.02797334,96688.0,96687.0,0.18133991]
[1740281326202,0.02797334,96688.0,96687.0,0.17933991]
[1740281326408,0.00028493,96688.0,96687.0,0.17933991]
[1740281326901,0.00028493,96688.0,96687.0,0.18133991]
[1740281328824,0.00028493,96688.0,96687.0,0.17733991]
[1740281329030,0.00028493,96688.0,96687.0,0.17933991]
[1740281329891,0.00028493,96688.0,96687.0,0.18233991]
[1740281334346,0.00028493,96688.0,96687.0,0.21459592]
[1740281335045,0.00028493,96688.0,96687.0,0.17733991]
[1740281335270,0.00028493,96688.0,96687.0,0.18233991]
[1740281381364,0.00028493,96688.0,96687.0,0.02720091]
[1740281381742,0.02797672,96688.0,96687.0,0.02720091]
[1740281382275,0.02952813,96688.0,96687.0,0.02720091]
[1740281383141,0.02952813,96688.0,96687.0,0.02420091]
[1740281383487,0.02797672,96688.0,96687.0,0.02520091]
[1740281384291,0.02797672,96688.0,96687.0,0.02320091]
[1740281384924,0.02797672,96688.0,96687.0,0.02520091]
[1740281388760,0.02797672,96688.0,96687.0,0.0047008]
[1740281388761,0.20987385,96688.0,96687.0,0.0047008]
[1740281388978,0.20832241,96688.0,96687.0,0.0047008]
[1740281389793,0.22286326,96688.0,96687.0,0.0037008]
[1740281390102,0.37800126,96688.0,96687.0,0.0037008]
[1740281390809,0.85770126,96688.0,96687.0,0.0037008]
[1740281391294,0.90700126,96688.0,96687.0,0.0017008]
[1740281391482,0.90700126,96688.0,96687.0,0.0027008]
[1740281391811,0.90700126,96688.0,96687.0,0.0017008]
[1740281393228,0.91738581,96688.0,96687.0,0.0017008]
[1740281397113,0.90700126,96688.0,96687.0,0.0017008]
[1740281398392,0.91755505,96688.0,96687.0,0.0017008]
[1740281401001,0.90700126,96688.0,96687.0,0.0017008]
[1740281406947,0.70256326,96688.0,96687.0,0.0017008]
[1740281407138,0.85770126,96688.0,96687.0,0.0017008]
[1740281407342,0.70256326,96688.0,96687.0,0.0017008]
[1740281408169,0.85770126,96688.0,96687.0,0.0017008]
[1740281408708,0.70256326,96688.0,96687.0,0.0017008]
[1740281410234,0.62486326,96688.0,96687.0,0.0017008]
[1740281412008,0.78000126,96688.0,96687.0,0.0017008]
[1740281417038,0.62486326,96688.0,96687.0,0.0017008]
[1740281417669,0.59717147,96688.0,96687.0,0.0017008]
[1740281417988,0.62474189,96688.0,96687.0,0.0017008]
[1740281423324,0.62458543,96688.0,96687.0,0.0017008]
[1740281456504,0.47458543,96688.0,96687.0,0.0017008]
[1740281456971,0.62458543,96688.0,96687.0,0.0017008]
[1740281457330,0.6128876,96688.0,96687.0,0.0017008]
[1740281460993,0.4628876,96688.0,96687.0,0.0017008]
[1740281461649,0.44834675,96688.0,96687.0,0.0017008]
[1740281462239,0.4628876,96688.0,96687.0,0.1568398]
[1740281462393,0.44834675,96688.0,96687.0,0.1568398]
[1740281462596,0.34570106,96688.0,96687.0,0.1568398]
[1740281462795,0.34570106,96688.0,96687.0,0.2040398]
[1740281465455,0.34570106,96688.0,96687.0,0.0489008]
[1740281467514,0.01600106,96688.0,96687.0,0.0489008]
[1740281467752,0.00012847,96688.0,96687.0,0.0489008]
[1740281482317,0.00012847,96688.0,96687.0,0.2040398]
[1740281484713,0.00012847,96688.0,96687.0,0.0489008]
[1740281485122,0.00012847,96688.0,96687.0,0.2040398]
[1740281486745,0.00012847,96688.0,96687.0,0.2060398]
[1740281487569,0.00012847,96688.0,96687.0,0.2070398]
[1740281508048,0.00012847,96688.0,96687.0,0.32149403]
[1740281509142,0.00012847,96688.0,96687.0,0.31949403]
[1740281509299,0.00012847,96688.0,96687.0,0.31849403]
[1740281509648,0.00012847,96688.0,96687.0,0.32649403]
[1740281510604,0.00012847,96688.0,96687.0,0.2942398]
[1740281510811,0.00012847,96688.0,96687.0,0.32646922]
[1740281511869,0.00012847,96688.0,96687.0,0.2942398]
[1740281512079,0.00012847,96688.0,96687.0,0.32646592]
[1740281512639,0.00012847,96688.0,96687.0,0.2942398]
[1740281515463,0.00012847,96688.0,96687.0,0.32645864]
[1740281515717,0.00012847,96688.0,96687.0,0.3264567]
[1740281515894,0.00012847,96688.0,96687.0,0.3224567]
[1740281516098,0.00012847,96688.0,96687.0,0.3184567]
[1740281516298,0.00012847,96688.0,96687.0,0.3244567]
[1740281516498,0.00012847,96688.0,96687.0,0.2982398]
[1740281516738,0.00012847,96688.0,96687.0,0.33045486]
[1740281519695,0.00012847,96688.0,96687.0,0.2982398]
[1740281522998,0.00012847,96688.0,96687.0,0.2160398]
[1740281533544,0.00012847,96688.0,96687.0,0.24827129]
[1740281535523,0.00012847,96688.0,96687.0,0.2934398]
[1740281536391,0.00012847,96688.0,96687.0,0.32566785]
[1740281536832,0.00012847,96688.0,96687.0,0.31966785]
[1740281537250,0.00012847,96688.0,96687.0,0.32666785]
[1740281537833,0.00012847,96688.0,96687.0,0.32066785]
[1740281538144,0.00012847,96688.0,96687.0,0.32766785]
[1740281543485,0.00012847,96688.0,96687.0,0.25770785]
[1740281544243,0.00012847,96688.0,96687.0,0.21050785]
[1740281544909,0.00012847,96688.0,96687.0,0.20306785]
[1740281545664,0.00012847,96688.0,96687.0,0.1708398]
[1740281546073,0.00012847,96688.0,96687.0,0.3138398]
[1740281546277,0.00012847,96688.0,96687.0,0.0117008]
[1740281546278,0.07952847,96688.0,96687.0,0.0117008]
[1740281546475,0.07952847,96688.0,96687.0,0.1668398]
[1740281546673,0.10160503,96688.0,96687.0,0.1668398]
[1740281547102,0.07952847,96688.0,96687.0,0.1598398]
[1740281547364,0.07952847,96688.0,96687.0,0.1638398]
[1740281547543,0.07952847,96688.0,96687.0,0.1598398]
[1740281547967,0.07952847,96688.0,96687.0,0.1628398]
[1740281548104,0.07952847,96688.0,96687.0,0.1598398]
[1740281548512,0.07952847,96688.0,96687.0,0.1628398]
[1740281550010,0.00012847,96688.0,96687.0,0.1628398]
[1740281558275,0.00012847,96688.0,96687.0,0.0077008]
[1740281558276,0.40365301,96688.0,96687.0,0.0077008]
[1740281558694,0.42572718,96688.0,96687.0,0.0077008]
[1740281562860,0.75542718,96688.0,96687.0,0.0077008]
[1740281576691,0.75542718,96688.0,96687.0,0.0047008]
[1740281577069,0.75642718,96688.0,96687.0,0.0017008]
[1740281577285,0.75742718,96688.0,96687.0,0.0017008]
[1740281577511,0.75642718,96688.0,96687.0,0.0017008]
[1740281577674,0.75742718,96688.0,96687.0,0.0027008]
[1740281577869,0.75842718,96688.0,96687.0,0.0027008]
[1740281601681,0.75788634,96688.0,96687.0,0.0027008]
[1740281604347,0.70808634,96688.0,96687.0,0.0027008]
[1740281604557,0.70808634,96688.0,96687.0,0.02363512]
[1740281604966,0.70776014,96688.0,96687.0,0.02363512]
[1740281608570,0.70861054,96688.0,96687.0,0.02363512]
[1740281611515,0.47281111,96688.0,96687.0,0.02363512]
[1740281612278,0.45727026,96688.0,96687.0,0.02263512]
[1740281612688,0.45827026,96688.0,96687.0,0.02263512]
[1740281612905,0.47081111,96688.0,96687.0,0.02263512]
[1740281613108,0.46981111,96688.0,96687.0,0.02263512]
[1740281613543,0.47181111,96688.0,96687.0,0.02263512]
[1740281613923,0.46981111,96688.0,96687.0,0.02263512]
[1740281614335,0.47181111,96688.0,96687.0,0.02263512]
[1740281615795,0.62694911,96688.0,96687.0,0.0017008]
[1740281626486,0.47181111,96688.0,96687.0,0.0017008]
[1740281627023,0.45727026,96688.0,96687.0,0.0017008]
[1740281627255,0.47181111,96688.0,96687.0,0.0017008]
[1740281641136,0.47081111,96688.0,96687.0,0.0017008]
[1740281641470,0.47181111,96688.0,96687.0,0.0017008]
[1740281642036,0.47081111,96688.0,96687.0,0.0017008]
[1740281642840,0.47181111,96688.0,96687.0,0.0017008]
[1740281656161,0.35462457,96688.0,96687.0,0.1568398]
[1740281657892,0.02492457,96688.0,96687.0,0.1568398]
[1740281658278,0.0028504,96688.0,96687.0,0.1568398]
[1740281662970,0.0028504,96688.0,96687.0,0.0017008]
[1740281705383,0.02489669,96688.0,96687.0,0.0017008]
[1740281706737,0.0028504,96688.0,96687.0,0.0017008]
[1740281707257,0.27517494,96688.0,96687.0,0.0017008]
[1740281707464,0.35747494,96688.0,96687.0,0.0017008]
[1740281711285,0.68717494,96688.0,96687.0,0.0017008]
[1740281713168,0.70922123,96688.0,96687.0,0.0017008]
[1740281752373,0.62692123,96688.0,96687.0,0.0017008]
[1740281782007,0.155167,96670.0,96662.0,0.0703008]
[1740281782187,0.10264569,96669.0,96662.0,0.0703008]
[1740281782390,0.01909418,96668.0,96662.0,0.0703008]
[1740281782617,0.10264569,96667.0,96662.0,0.0703008]
[1740281782989,0.12173855,96667.0,96662.0,0.0703008]
[1740281783138,0.12173855,96667.0,96662.0,0.0743008]
[1740281783572,0.12173855,96667.0,96662.0,0.0783008]
[1740281783763,0.12173855,96667.0,96662.0,0.0703008]
[1740281784171,0.12173855,96667.0,96662.0,0.0743008]
[1740281784351,0.12173855,96667.0,96662.0,0.0703008]
[1740281785179,0.12273855,96667.0,96663.0,0.0451]
[1740281786488,0.12373855,96667.0,96663.0,0.0451]
[1740281787106,0.12273855,96667.0,96663.0,0.0451]
[1740281787486,0.12373855,96667.0,96663.0,0.0451]
[1740281792727,0.12373855,96667.0,96663.0,0.0468008]
[1740281793443,0.155176,96664.0,96663.0,0.0017008]
[1740281793731,0.60206254,96664.0,96663.0,0.0017008]
[1740281793968,0.62114572,96664.0,96663.0,0.0017008]
[1740281795014,0.60206254,96664.0,96663.0,0.0017008]
[1740281796444,0.60306254,96664.0,96663.0,0.0017008]
[1740281797613,0.60406254,96664.0,96663.0,0.0017008]
[1740281803025,0.62313798,96664.0,96663.0,0.0017008]
[1740281803998,0.46796198,96664.0,96663.0,0.0017008]
[1740281816354,0.46881258,96664.0,96663.0,0.0017008]
[1740281822124,0.45427173,96664.0,96663.0,0.1568788]
[1740281824156,0.45427173,96664.0,96663.0,0.0017008]
[1740281828835,0.60944773,96664.0,96663.0,0.0017008]
[1740281830458,0.45427173,96664.0,96663.0,0.0017008]
[1740281830949,0.60944773,96664.0,96663.0,0.0017008]
[1740281844416,0.61720808,96664.0,96663.0,0.0017008]
[1740281849129,0.75764893,96664.0,96663.0,0.0017008]
[1740281850387,0.74988858,96664.0,96663.0,0.0017008]
[1740281854370,0.75763734,96664.0,96663.0,0.0017008]
[1740281856060,0.74988858,96664.0,96663.0,0.0017008]
[1740281857891,0.74988858,96664.0,96663.0,8e-07]
[1740281858107,0.155226,96633.0,96632.0,0.0484]
[1740281858326,0.155226,96633.0,96632.0,0.05911822]
[1740281858684,0.17427569,96633.0,96632.0,0.05911822]
[1740281859656,0.18202174,96633.0,96632.0,0.01071822]
[1740281860754,0.18202174,96633.0,96632.0,0.01171822]
[1740281860960,0.17427569,96633.0,96632.0,0.01171822]
[1740281861132,0.17427569,96633.0,96632.0,0.01271822]
[1740281861472,0.17427569,96633.0,96632.0,0.01441902]
[1740281872615,0.01904969,96633.0,96632.0,0.01441902]
[1740281872783,0.02679432,96633.0,96632.0,0.01441902]
[1740281873692,0.18202032,96633.0,96632.0,0.01441902]
[1740281874149,0.17427569,96633.0,96632.0,0.01441902]
[1740281874573,0.01904969,96633.0,96632.0,0.01441902]
[1740281875677,0.17427569,96633.0,96632.0,0.01441902]
[1740281876223,0.01904969,96633.0,96632.0,0.01441902]
[1740281880430,0.155223,96635.0,96632.0,0.01441902]
[1740281881499,0.20696,96637.0,96632.0,0.01341902]
[1740281881726,0.155223,96635.0,96632.0,0.01341902]
[1740281882330,0.155223,96635.0,96632.0,0.01241902]
[1740281882642,0.155224,96635.0,96632.0,0.01241902]
[1740281882940,0.10264569,96636.0,96632.0,0.01241902]
[1740281883564,0.155223,96635.0,96632.0,0.01241902]
[1740281884366,0.10264569,96636.0,96632.0,0.01241902]
[1740281885474,0.155223,96635.0,96632.0,0.01241902]
[1740281886326,0.25786869,96636.0,96632.0,0.01241902]
[1740281892169,0.10264569,96636.0,96632.0,0.01241902]
[1740281892506,0.25786669,96636.0,96632.0,0.01241902]
[1740281892893,0.01902776,96635.0,96632.0,0.01241902]
[1740281898076,0.02002776,96635.0,96632.0,0.01241902]
[1740281898276,0.02102776,96635.0,96632.0,0.01241902]
[1740281898486,0.02002776,96635.0,96632.0,0.01241902]
[1740281898623,0.01902776,96635.0,96632.0,0.01241902]
[1740281898825,0.02102776,96635.0,96632.0,0.01241902]
[1740281899559,0.02102776,96635.0,96634.0,0.238324]
[1740281899754,0.002,96635.0,96634.0,0.238324]
[1740281900430,0.002,96635.0,96634.0,0.285324]
[1740281900683,0.001,96635.0,96634.0,0.285324]
[1740281900883,0.001,96635.0,96634.0,0.286324]
[1740281901309,0.0793,96659.0,96647.0,0.155203]
[1740281901526,0.43234569,96649.0,96647.0,0.155203]
[1740281901915,0.43234569,96649.0,96643.0,0.155209]
[1740281903261,0.43534569,96649.0,96643.0,0.155209]
[1740281903461,0.43534569,96649.0,96639.0,0.10808989]
[1740281903669,0.43534569,96649.0,96642.0,0.155211]
[1740281903815,0.43734569,96649.0,96642.0,0.155211]
[1740281904213,0.43934569,96649.0,96642.0,0.155211]
[1740281904639,0.43734569,96649.0,96642.0,0.155211]
[1740281904840,0.00775563,96648.0,96642.0,0.155211]
[1740281906051,0.00975563,96648.0,96642.0,0.155211]
[1740281906453,0.00775563,96647.0,96643.0,0.15521]
[1740281907976,0.02680302,96646.0,96643.0,0.15521]
[1740281908175,0.02680302,96646.0,96644.0,0.155208]
[1740281908725,0.02680302,96646.0,96641.0,0.206951]
[1740281908863,0.01904739,96646.0,96643.0,0.15521]
[1740281909068,0.002,96646.0,96643.0,0.15521]
[1740281909596,0.001,96646.0,96643.0,0.15521]
[1740281910438,0.002,96646.0,96643.0,0.15521]
[1740281910732,0.003,96646.0,96643.0,0.15521]
[1740281910878,0.002,96646.0,96643.0,0.15521]
[1740281911073,0.002,96646.0,96644.0,0.155208]
[1740281911276,0.003,96646.0,96645.0,0.155207]
[1740281911685,0.002,96646.0,96645.0,0.155207]
[1740281911923,0.3297,96649.0,96644.0,0.0831]
[1740281912137,0.001,96646.0,96645.0,0.155207]
[1740281912344,0.002,96646.0,96645.0,0.155207]
[1740281912514,0.3297,96649.0,96648.0,0.155202]
[1740281914458,0.3307,96649.0,96648.0,0.155202]
[1740281914889,0.34976027,96649.0,96648.0,0.155202]
[1740281915181,0.35076027,96649.0,96648.0,0.155202]
[1740281916190,0.02106027,96649.0,96648.0,0.155202]
[1740281916385,0.002,96649.0,96648.0,0.155202]
[1740281920108,0.002,96649.0,96648.0,0.17561784]
[1740281925950,0.002,96649.0,96648.0,0.155202]
[1740281933434,0.002,96649.0,96648.0,0.1569028]
[1740281949074,0.002,96649.0,96648.0,0.0017008]
[1740281949075,0.18254569,96649.0,96648.0,0.0017008]
[1740281949480,0.20160231,96649.0,96648.0,0.0017008]
[1740281950131,0.37134316,96649.0,96648.0,0.0017008]
[1740281951096,0.36934316,96649.0,96648.0,0.0017008]
[1740281951485,0.37634316,96649.0,96648.0,0.0017008]
[1740281951892,0.70604316,96649.0,96648.0,0.0017008]
[1740281954091,0.71379874,96649.0,96648.0,0.0017008]
[1740281976237,0.71379874,96649.0,96648.0,0.02260356]
[1740281980704,0.71379874,96649.0,96648.0,0.0017008]
[1740281980855,0.72715039,96649.0,96648.0,0.0017008]
[1740281996953,0.71939481,96649.0,96648.0,0.0017008]
[1740282032166,0.70966235,96649.0,96648.0,0.0017008]
[1740282037447,0.71743035,96649.0,96648.0,0.0017008]
[1740282038870,0.70966235,96649.0,96648.0,0.0017008]
[1740282043284,0.63176235,96649.0,96648.0,0.0017008]
[1740282051198,0.63176235,96649.0,96648.0,0.02240177]
[1740282051421,0.63176235,96649.0,96648.0,0.0017008]
[1740282055118,0.70726235,96649.0,96648.0,0.0017008]
[1740282068827,0.71503264,96649.0,96648.0,0.0017008]
[1740282069028,0.76173264,96649.0,96648.0,0.0017008]
[1740282079573,0.91173264,96649.0,96648.0,0.0017008]
[1740282080660,0.155208,96644.0,96643.0,0.0017008]
[1740282080865,0.48760607,96644.0,96643.0,0.0017008]
[1740282081105,0.523263,96644.0,96643.0,0.0017008]
[1740282081462,0.53103329,96644.0,96643.0,0.0017008]
[1740282082130,0.95129329,96644.0,96643.0,0.0017008]
[1740282082500,0.95329329,96644.0,96643.0,0.0017008]
[1740282082976,0.95129329,96644.0,96643.0,0.0017008]
[1740282083567,0.95029329,96644.0,96643.0,0.0017008]
[1740282083744,0.95729329,96644.0,96643.0,0.0017008]
[1740282085012,0.96229329,96644.0,96643.0,0.0017008]
[1740282089957,0.954523,96644.0,96643.0,0.0017008]
[1740282093392,0.961963,96644.0,96643.0,0.0017008]
[1740282095199,1.05496141,96644.0,96643.0,0.0017008]
[1740282097449,1.05496141,96644.0,96643.0,0.02278279]
[1740282099752,0.961963,96644.0,96643.0,0.02278279]
[1740282105009,0.806763,96644.0,96643.0,0.02278279]
[1740282105184,0.62222215,96644.0,96643.0,0.02278279]
[1740282105539,0.786763,96644.0,96643.0,0.02278279]
[1740282111330,0.481555,96644.0,96643.0,0.02278279]
[1740282111963,0.636763,96644.0,96643.0,0.02278279]
[1740282116022,0.636763,96644.0,96643.0,0.0017008]
[1740282127232,0.636763,96644.0,96643.0,0.02290157]
[1740282131660,0.636763,96644.0,96643.0,0.0017008]
[1740282141407,0.481555,96644.0,96643.0,0.0017008]
[1740282143712,0.62222215,96644.0,96643.0,0.0017008]
[1740282144574,0.46701415,96644.0,96643.0,0.1569108]
[1740282144979,0.46701415,96644.0,96643.0,0.0017008]
[1740282145307,0.46701415,96644.0,96643.0,0.1569108]
[1740282145308,0.44434569,96644.0,96643.0,0.1569108]
[1740282145483,0.44434569,96644.0,96643.0,0.0017008]
[1740282145666,0.4670322,96644.0,96643.0,0.0017008]
[1740282146267,0.4600322,96644.0,96643.0,0.0017008]
[1740282147239,0.4640322,96644.0,96643.0,0.0017008]
[1740282152557,0.4590322,96644.0,96643.0,0.0017008]
[1740282152702,0.4630322,96644.0,96643.0,0.0017008]
[1740282152922,0.4590322,96644.0,96643.0,0.0017008]
[1740282153100,0.4620322,96644.0,96643.0,0.0017008]
[1740282157702,0.4620322,96644.0,96643.0,0.1569108]
[1740282158685,0.4580322,96644.0,96643.0,0.1569108]
[1740282159374,0.4550322,96644.0,96643.0,0.1569108]
[1740282159573,0.4590322,96644.0,96643.0,0.1569108]